[Event "New Zealand Rapid Championship"]
[Site "Wellington"]
[ePGN "0.1;DGT LiveChess/2.2.5"]
[Date "2023.01.11"]
[Round "1.1"]
[White "Nazeer, Afique"]
[Black "Shoker, Samy"]
[Result "0-1"]
[TimeControl "25+5"]
[BlackTitle "GM"]
[WhiteFideId "9970703"]
[BlackFideId "627143"]
[WhiteElo "1669"]
[BlackElo "2440"]

1. d4 {[%clk 00:25:06]} {[%emt 00:00:03]} Nf6 {[%clk 00:25:06]} {[%emt
00:00:05]} 2. c4 {[%clk 00:25:07]} {[%emt 00:00:04]} g6 {[%clk 00:24:42]}
{[%emt 00:00:29]} 3. Nc3 {[%clk 00:25:10]} {[%emt 00:00:02]} Bg7 {[%clk
00:24:45]} {[%emt 00:00:02]} 4. Nf3 {[%clk 00:23:14]} {[%emt 00:02:00]} d6
{[%clk 00:24:26]} {[%emt 00:00:25]} 5. g3 {[%clk 00:23:01]} {[%emt 00:00:18]}
O-O {[%clk 00:24:29]} {[%emt 00:00:03]} 6. Bg2 {[%clk 00:23:04]} {[%emt
00:00:02]} Nc6 {[%clk 00:24:22]} {[%emt 00:00:11]} 7. O-O {[%clk 00:22:56]}
{[%emt 00:00:20]} a6 {[%clk 00:24:26]} 8. Re1 {[%clk 00:22:45]} {[%emt
00:00:11]} Rb8 {[%clk 00:24:27]} {[%emt 00:00:04]} 9. a3 {[%clk 00:22:27]}
{[%emt 00:00:24]} Nd7 {[%clk 00:23:25]} {[%emt 00:01:06]} 10. b4 {[%clk
00:20:32]} {[%emt 00:02:00]} e5 {[%clk 00:23:11]} {[%emt 00:00:20]} 11. d5
{[%clk 00:19:22]} {[%emt 00:01:13]} Ne7 {[%clk 00:22:28]} {[%emt 00:00:48]} 12.
e4 {[%clk 00:19:23]} {[%emt 00:00:16]} h6 {[%clk 00:22:31]} 13. Qc2 {[%clk
00:16:50]} {[%emt 00:02:29]} f5 {[%clk 00:22:24]} {[%emt 00:00:11]} 14. Bb2
{[%clk 00:15:45]} {[%emt 00:01:11]} Nf6 {[%clk 00:22:24]} {[%emt 00:00:15]} 15.
Re2 {[%clk 00:14:51]} {[%emt 00:00:49]} g5 {[%clk 00:21:57]} {[%emt 00:00:33]}
16. Nd2 {[%clk 00:13:35]} {[%emt 00:01:21]} f4 {[%clk 00:21:58]} {[%emt
00:00:04]} 17. f3 {[%clk 00:12:32]} {[%emt 00:01:08]} h5 {[%clk 00:21:47]}
{[%emt 00:00:16]} 18. Nf1 {[%clk 00:12:16]} {[%emt 00:00:21]} Ng6 {[%clk
00:21:50]} {[%emt 00:00:02]} 19. Qd3 {[%clk 00:09:57]} {[%emt 00:02:23]} g4
{[%clk 00:21:30]} {[%emt 00:00:25]} 20. Bc1 {[%clk 00:08:22]} {[%emt 00:01:41]}
Bh6 {[%clk 00:21:33]} {[%emt 00:00:02]} 21. Qc2 {[%clk 00:07:31]} {[%emt
00:00:54]} Kh7 {[%clk 00:21:23]} {[%emt 00:00:15]} 22. Bd2 {[%clk 00:07:03]}
{[%emt 00:00:34]} h4 {[%clk 00:20:15]} {[%emt 00:01:13]} 23. gxh4 {[%clk
00:05:36]} {[%emt 00:01:32]} Nxh4 {[%clk 00:20:02]} {[%emt 00:00:17]} 24. Rf2
{[%clk 00:03:46]} {[%emt 00:01:55]} Rg8 {[%clk 00:19:34]} {[%emt 00:00:33]} 25.
Kh1 {[%clk 00:03:03]} {[%emt 00:00:49]} Nxg2 {[%clk 00:19:31]} {[%emt
00:00:06]} 26. Rxg2 {[%clk 00:02:50]} {[%emt 00:00:19]} gxf3 {[%clk 00:19:33]}
{[%emt 00:00:02]} 27. Rf2 {[%clk 00:02:04]} {[%emt 00:00:51]} Bh3 {[%clk
00:19:31]} {[%emt 00:00:08]} 28. Rxf3 {[%clk 00:01:46]} {[%emt 00:00:23]} Bg2+
{[%clk 00:19:33]} {[%emt 00:00:04]} 29. Kg1 {[%clk 00:01:28]} {[%emt 00:00:21]}
Bxf3+ {[%clk 00:19:36]} {[%emt 00:00:02]} 30. Kf2 {[%clk 00:01:32]} {[%emt
00:00:01]} Bh5 {[%clk 00:19:38]} {[%emt 00:00:04]} 31. Ne2 {[%clk 00:01:22]}
{[%emt 00:00:16]} Ng4+ {[%clk 00:19:30]} {[%emt 00:00:12]} 32. Ke1 {[%clk
00:01:11]} {[%emt 00:00:16]} Qh4+ {[%clk 00:19:33]} {[%emt 00:00:02]} 33. Kd1
{[%clk 00:01:08]} {[%emt 00:00:08]} Nf2+ {[%clk 00:19:36]} {[%emt 00:00:02]} 34.
Kc1 {[%clk 00:01:02]} {[%emt 00:00:12]} Bxe2 {[%clk 00:19:39]} {[%emt
00:00:02]} 35. Bc3 {[%clk 00:00:44]} {[%emt 00:00:23]} Bxf1 {[%clk 00:19:39]}
{[%emt 00:00:11]} 36. Kb2 {[%clk 00:00:43]} Bd3 {[%clk 00:19:35]} {[%emt
00:00:09]} 37. Qa4 {[%clk 00:00:08]} {[%emt 00:00:39]} Rg7 {[%clk 00:19:16]}
{[%emt 00:00:24]} 0-1

[Event "New Zealand Rapid Championship"]
[Site "Wellington"]
[Date "2023.01.11"]
[Round "1.2"]
[White "McDonald, Duncan"]
[Black "Hague, Ben"]
[Result "0-1"]
[TimeControl "25+5"]
[BlackTitle "FM"]
[WhiteFideId "4314433"]
[BlackFideId "405647"]
[WhiteElo "1372"]
[BlackElo "2410"]

1. e4 {[%clk 00:25:09]} Nf6 {[%clk 00:25:03]} {[%emt 00:00:07]} 2. e5 {[%clk
00:24:37]} {[%emt 00:00:38]} Nd5 {[%clk 00:25:06]} {[%emt 00:00:02]} 3. d4
{[%clk 00:24:40]} {[%emt 00:00:02]} d6 {[%clk 00:25:10]} {[%emt 00:00:02]} 4.
c4 {[%clk 00:24:38]} {[%emt 00:00:07]} Nb6 {[%clk 00:25:13]} {[%emt 00:00:02]}
5. exd6 {[%clk 00:24:28]} {[%emt 00:00:15]} cxd6 {[%clk 00:25:15]} {[%emt
00:00:03]} 6. Nc3 {[%clk 00:24:27]} {[%emt 00:00:06]} g6 {[%clk 00:25:17]}
{[%emt 00:00:02]} 7. Be3 {[%clk 00:24:11]} {[%emt 00:00:21]} Bg7 {[%clk
00:25:20]} {[%emt 00:00:02]} 8. Qd2 {[%clk 00:23:39]} {[%emt 00:00:38]} O-O
{[%clk 00:25:20]} {[%emt 00:00:05]} 9. Nf3 {[%clk 00:23:34]} {[%emt 00:00:10]}
Bg4 {[%clk 00:25:09]} {[%emt 00:00:15]} 10. Rc1 {[%clk 00:22:29]} {[%emt
00:01:12]} Bxf3 {[%clk 00:24:31]} {[%emt 00:00:43]} 11. gxf3 {[%clk 00:22:32]}
{[%emt 00:00:13]} Nc6 {[%clk 00:24:28]} 12. Be2 {[%clk 00:22:08]} {[%emt
00:00:29]} d5 {[%clk 00:24:00]} {[%emt 00:00:32]} 13. b3 {[%clk 00:21:40]}
{[%emt 00:00:34]} dxc4 {[%clk 00:23:42]} {[%emt 00:00:19]} 14. bxc4 {[%clk
00:21:41]} {[%emt 00:00:10]} Nxd4 {[%clk 00:22:50]} {[%emt 00:01:03]} 15. c5
{[%clk 00:20:17]} {[%emt 00:01:17]} Nxe2 {[%clk 00:22:25]} {[%emt 00:00:32]} 16.
Qxe2 {[%clk 00:20:14]} {[%emt 00:00:06]} Nd5 {[%clk 00:22:10]} {[%emt
00:00:23]} 17. Nxd5 {[%clk 00:19:57]} {[%emt 00:00:33]} Qxd5 {[%clk 00:22:12]}
18. O-O {[%clk 00:19:56]} Rfd8 {[%clk 00:21:16]} {[%emt 00:01:06]} 19. Rfd1
{[%clk 00:19:18]} {[%emt 00:00:34]} Qe6 {[%clk 00:20:47]} {[%emt 00:00:34]} 20.
Qb5 {[%clk 00:18:53]} {[%emt 00:00:30]} Qh3 {[%clk 00:16:31]} {[%emt 00:04:20]}
21. Qxb7 {[%clk 00:17:55]} {[%emt 00:01:05]} Re8 {[%clk 00:10:41]} {[%emt
00:05:55]} 22. Rd7 {[%clk 00:16:50]} {[%emt 00:01:10]} Be5 {[%clk 00:09:25]}
{[%emt 00:01:21]} 23. f4 {[%clk 00:16:30]} {[%emt 00:00:25]} Qg4+ {[%clk
00:09:23]} {[%emt 00:00:05]} 24. Kh1 {[%clk 00:15:47]} {[%emt 00:00:48]} Bxf4
{[%clk 00:08:36]} {[%emt 00:00:52]} 25. Bxf4 {[%clk 00:15:08]} {[%emt
00:00:44]} Qxf4 {[%clk 00:08:38]} {[%emt 00:00:03]} 26. Rc2 {[%clk 00:15:12]}
{[%emt 00:00:02]} Rab8 {[%clk 00:08:33]} {[%emt 00:00:10]} 27. c6 {[%clk
00:13:34]} {[%emt 00:01:44]} Rxb7 {[%clk 00:08:29]} {[%emt 00:00:09]} 28. cxb7
{[%clk 00:13:33]} {[%emt 00:00:06]} Qe4+ {[%clk 00:08:31]} {[%emt 00:00:02]} 29.
Kg1 {[%clk 00:13:34]} {[%emt 00:00:06]} Qxc2 {[%clk 00:08:34]} 0-1

[Event "New Zealand Rapid Championship"]
[Site "Wellington"]
[Date "2023.01.11"]
[Round "1.3"]
[White "Hwang, Ryan"]
[Black "Van Riemsdijk, Herman C."]
[Result "0-1"]
[TimeControl "25+5"]
[BlackTitle "IM"]
[WhiteFideId "4313313"]
[BlackFideId "2100053"]
[WhiteElo "1402"]
[BlackElo "2370"]

1. e4 {[%clk 00:25:08]} {[%emt 00:00:02]} e5 {[%clk 00:24:58]} {[%emt
00:00:11]} 2. Nf3 {[%clk 00:25:10]} {[%emt 00:00:03]} Nc6 {[%clk 00:24:59]}
{[%emt 00:00:05]} 3. Bc4 {[%clk 00:24:56]} {[%emt 00:00:19]} Nf6 {[%clk
00:24:57]} {[%emt 00:00:06]} 4. d3 {[%clk 00:24:49]} {[%emt 00:00:12]} Be7
{[%clk 00:24:55]} {[%emt 00:00:07]} 5. Nc3 {[%clk 00:24:51]} {[%emt 00:00:03]}
O-O {[%clk 00:24:51]} {[%emt 00:00:09]} 6. Bd2 {[%clk 00:24:34]} {[%emt
00:00:22]} d6 {[%clk 00:24:45]} {[%emt 00:00:11]} 7. h3 {[%clk 00:24:21]}
{[%emt 00:00:18]} Na5 {[%clk 00:24:39]} {[%emt 00:00:10]} 8. Bb3 {[%clk
00:23:17]} {[%emt 00:01:10]} Nxb3 {[%clk 00:24:21]} {[%emt 00:00:37]} 9. axb3
{[%clk 00:23:21]} Re8 {[%clk 00:24:12]} {[%emt 00:00:02]} 10. O-O {[%clk
00:23:12]} {[%emt 00:00:14]} c6 {[%clk 00:24:05]} {[%emt 00:00:11]} 11. Re1
{[%clk 00:22:56]} {[%emt 00:00:32]} Qc7 {[%clk 00:23:57]} {[%emt 00:00:04]} 12.
Qe2 {[%clk 00:22:08]} {[%emt 00:00:55]} Bf8 {[%clk 00:23:46]} {[%emt 00:00:13]}
13. Bg5 {[%clk 00:20:36]} {[%emt 00:01:37]} Nd7 {[%clk 00:23:25]} {[%emt
00:00:39]} 14. Qd2 {[%clk 00:18:41]} {[%emt 00:01:56]} a6 {[%clk 00:22:21]}
{[%emt 00:00:59]} 15. d4 {[%clk 00:17:43]} {[%emt 00:01:03]} exd4 {[%clk
00:22:00]} {[%emt 00:00:26]} 16. Nxd4 {[%clk 00:17:34]} {[%emt 00:00:14]} Ne5
{[%clk 00:21:31]} {[%emt 00:00:35]} 17. f4 {[%clk 00:15:58]} {[%emt 00:01:41]}
Ng6 {[%clk 00:21:20]} {[%emt 00:00:15]} 18. Nf3 {[%clk 00:15:08]} {[%emt
00:00:56]} f6 {[%clk 00:20:32]} {[%emt 00:00:53]} 19. f5 {[%clk 00:14:36]}
{[%emt 00:00:37]} Ne5 {[%clk 00:19:09]} {[%emt 00:01:27]} 20. Bf4 {[%clk
00:12:50]} {[%emt 00:01:52]} Bd7 {[%clk 00:17:51]} {[%emt 00:01:22]} 21. Rad1
{[%clk 00:12:33]} {[%emt 00:00:22]} Rad8 {[%clk 00:17:48]} {[%emt 00:00:08]} 22.
Nxe5 {[%clk 00:11:47]} {[%emt 00:00:51]} dxe5 {[%clk 00:17:39]} {[%emt
00:00:14]} 23. Be3 {[%clk 00:11:16]} {[%emt 00:00:36]} Bxf5 {[%clk 00:17:31]}
{[%emt 00:00:13]} 24. Qf2 {[%clk 00:11:08]} {[%emt 00:00:13]} Rxd1 {[%clk
00:17:05]} {[%emt 00:00:32]} 25. Rxd1 {[%clk 00:11:00]} {[%emt 00:00:13]} Be6
{[%clk 00:17:00]} {[%emt 00:00:09]} 26. Kh2 {[%clk 00:10:21]} {[%emt 00:00:45]}
Qf7 {[%clk 00:13:09]} {[%emt 00:03:55]} 27. Na4 {[%clk 00:07:51]} {[%emt
00:02:36]} g6 {[%emt 00:02:47]} 28. Bc5 {[%clk 00:06:54]} Bg7 {[%clk 00:10:23]}
{[%emt 00:01:10]} 29. Qd2 {[%clk 00:05:16]} {[%emt 00:01:42]} f5 {[%clk
00:10:09]} {[%emt 00:00:20]} 30. Be3 {[%clk 00:04:26]} {[%emt 00:00:55]} f4
{[%clk 00:09:57]} {[%emt 00:00:17]} 31. Bf2 {[%clk 00:04:20]} {[%emt 00:00:11]}
g5 {[%clk 00:09:54]} {[%emt 00:00:07]} 32. Nc5 {[%clk 00:04:06]} {[%emt
00:00:20]} Bc8 {[%clk 00:09:25]} {[%emt 00:00:34]} 33. Qb4 {[%clk 00:03:26]}
{[%emt 00:00:54]} b5 {[%clk 00:08:14]} {[%emt 00:01:07]} 34. Qa5 {[%clk
00:02:49]} {[%emt 00:00:42]} g4 {[%clk 00:05:28]} {[%emt 00:02:51]} 35. hxg4
{[%clk 00:01:31]} {[%emt 00:01:23]} Bxg4 {[%clk 00:04:36]} {[%emt 00:00:56]} 36.
Rd8 {[%clk 00:01:20]} {[%emt 00:00:17]} f3 {[%clk 00:04:20]} {[%emt 00:00:19]}
37. Rxe8+ {[%clk 00:00:43]} {[%emt 00:00:44]} Qxe8 {[%clk 00:04:18]} {[%emt
00:00:07]} 38. Qc3 {[%clk 00:00:37]} {[%emt 00:00:13]} Qg6 {[%clk 00:02:29]}
{[%emt 00:01:52]} 39. Qd2 {[%clk 00:00:06]} {[%emt 00:00:38]} fxg2 {[%clk
00:01:45]} {[%emt 00:00:47]} 40. Qd8+ {[%clk 00:00:06]} {[%emt 00:00:05]} Bf8
{[%clk 00:01:41]} {[%emt 00:00:09]} 41. Kxg2 {[%clk 00:00:10]} {[%emt
00:00:03]} Be2+ {[%clk 00:01:05]} {[%emt 00:00:40]} 42. Bg3 {[%clk 00:00:10]}
{[%emt 00:00:05]} h6 {[%clk 00:00:45]} {[%emt 00:00:25]} 43. Qd2 {[%clk
00:00:07]} {[%emt 00:00:08]} Qh5 {[%clk 00:00:44]} {[%emt 00:00:06]} 44. Ne6
{[%clk 00:00:08]} {[%emt 00:00:05]} Bf3+ {[%clk 00:00:41]} {[%emt 00:00:08]} 45.
Kf1 {[%clk 00:00:07]} {[%emt 00:00:06]} Qh1+ {[%clk 00:00:41]} {[%emt
00:00:05]} 46. Kf2 {[%clk 00:00:09]} {[%emt 00:00:02]} Qg2+ {[%clk 00:00:45]}
{[%emt 00:00:01]} 47. Ke3 {[%clk 00:00:12]} {[%emt 00:00:03]} Qxg3 {[%clk
00:00:46]} {[%emt 00:00:04]} 48. Nxf8 {[%clk 00:00:09]} {[%emt 00:00:08]} Qf4+
{[%clk 00:00:49]} {[%emt 00:00:02]} 49. Kd3 {[%clk 00:00:12]} {[%emt 00:00:03]}
Bxe4+ {[%clk 00:00:51]} {[%emt 00:00:03]} 0-1

[Event "New Zealand Rapid Championship"]
[Site "Wellington"]
[Date "2023.01.11"]
[Round "1.4"]
[White "Dive, Russell J"]
[Black "Ulm, Joy"]
[Result "1-0"]
[TimeControl "25+5"]
[WhiteTitle "IM"]
[WhiteFideId "4300106"]
[BlackFideId "0"]
[WhiteElo "2367"]
[BlackElo "1654"]

1. Nf3 {[%clk 00:25:07]} {[%emt 00:00:02]} d5 {[%clk 00:25:09]} {[%emt
00:00:02]} 2. c4 {[%clk 00:25:10]} {[%emt 00:00:01]} e6 {[%clk 00:25:09]}
{[%emt 00:00:05]} 3. g3 {[%clk 00:25:13]} {[%emt 00:00:02]} Nf6 {[%clk
00:25:03]} {[%emt 00:00:11]} 4. Bg2 {[%clk 00:25:17]} c5 {[%clk 00:24:56]}
{[%emt 00:00:12]} 5. O-O {[%clk 00:25:18]} {[%emt 00:00:04]} Bd6 {[%clk
00:24:24]} {[%emt 00:00:38]} 6. d4 {[%clk 00:25:14]} {[%emt 00:00:08]} Nc6
{[%clk 00:23:52]} {[%emt 00:00:36]} 7. Nc3 {[%clk 00:24:56]} {[%emt 00:00:24]}
O-O {[%clk 00:23:03]} {[%emt 00:00:55]} 8. cxd5 {[%clk 00:24:55]} {[%emt
00:00:06]} exd5 {[%clk 00:22:55]} {[%emt 00:00:13]} 9. Bg5 {[%clk 00:24:57]}
{[%emt 00:00:02]} Be6 {[%clk 00:21:58]} {[%emt 00:01:03]} 10. Rc1 {[%clk
00:24:38]} {[%emt 00:00:23]} b6 {[%clk 00:18:56]} {[%emt 00:03:07]} 11. Qa4
{[%clk 00:23:57]} {[%emt 00:00:46]} Rc8 {[%clk 00:18:31]} {[%emt 00:00:30]} 12.
dxc5 {[%clk 00:23:29]} {[%emt 00:00:34]} bxc5 {[%clk 00:17:31]} {[%emt
00:01:06]} 13. Rfd1 {[%clk 00:23:27]} {[%emt 00:00:14]} Be7 {[%clk 00:17:18]}
{[%emt 00:00:16]} 14. h4 {[%clk 00:18:43]} {[%emt 00:04:43]} h6 {[%clk
00:16:40]} {[%emt 00:00:43]} 15. Bf4 {[%clk 00:18:43]} {[%emt 00:00:05]} Qb6
{[%clk 00:16:04]} {[%emt 00:00:41]} 16. Qc2 {[%clk 00:18:39]} {[%emt 00:00:09]}
Rfd8 {[%clk 00:15:09]} {[%emt 00:01:00]} 17. Na4 {[%clk 00:17:57]} {[%emt
00:00:48]} Qa5 {[%clk 00:14:12]} {[%emt 00:01:01]} 18. a3 {[%clk 00:17:12]}
{[%emt 00:00:50]} Qb5 {[%clk 00:12:17]} {[%emt 00:02:07]} 19. Nc3 {[%clk
00:14:43]} {[%emt 00:02:27]} Qb6 {[%clk 00:12:04]} {[%emt 00:00:18]} 20. e3
{[%clk 00:14:33]} {[%emt 00:00:13]} Bg4 {[%clk 00:11:45]} {[%emt 00:00:24]} 21.
Na4 {[%clk 00:14:17]} {[%emt 00:00:23]} Qb5 {[%clk 00:11:26]} {[%emt 00:00:24]}
22. Rd2 {[%clk 00:13:11]} {[%emt 00:01:10]} Ne4 {[%clk 00:10:48]} {[%emt
00:00:43]} 23. Nc3 {[%clk 00:12:28]} {[%emt 00:00:49]} Nxc3 {[%clk 00:10:14]}
{[%emt 00:00:38]} 24. Qxc3 {[%clk 00:12:29]} {[%emt 00:00:05]} Rd7 {[%clk
00:09:11]} {[%emt 00:01:08]} 25. Ne5 {[%clk 00:12:16]} {[%emt 00:00:21]} Nxe5
{[%clk 00:08:58]} {[%emt 00:00:15]} 26. Bxe5 {[%clk 00:11:18]} {[%emt
00:01:03]} Bf8 {[%clk 00:08:05]} {[%emt 00:00:58]} 27. Rxd5 {[%clk 00:11:13]}
{[%emt 00:00:10]} Rxd5 {[%clk 00:07:39]} {[%emt 00:00:31]} 28. Bxd5 {[%clk
00:11:16]} {[%emt 00:00:02]} Qd7 {[%clk 00:06:27]} {[%emt 00:01:17]} 29. Qc4
{[%clk 00:11:11]} {[%emt 00:00:10]} Be6 {[%clk 00:06:08]} {[%emt 00:00:24]} 30.
Bxe6 {[%clk 00:11:06]} {[%emt 00:00:11]} Qxe6 {[%clk 00:06:09]} {[%emt
00:00:03]} 31. Qxe6 {[%clk 00:11:08]} {[%emt 00:00:04]} fxe6 {[%clk 00:06:12]}
{[%emt 00:00:01]} 32. Rd1 {[%clk 00:11:10]} {[%emt 00:00:04]} a5 {[%clk
00:03:45]} {[%emt 00:02:39]} 33. Rd7 {[%clk 00:11:11]} Ra8 {[%clk 00:03:45]} 34.
h5 {[%clk 00:11:02]} {[%emt 00:00:15]} a4 {[%clk 00:03:11]} {[%emt 00:00:40]}
35. Kg2 {[%clk 00:11:04]} {[%emt 00:00:02]} Re8 {[%clk 00:02:33]} {[%emt
00:00:44]} 36. Ra7 {[%clk 00:10:52]} {[%emt 00:00:17]} Be7 {[%clk 00:02:35]}
{[%emt 00:00:03]} 37. Rxa4 {[%clk 00:10:49]} {[%emt 00:00:10]} Bf6 {[%clk
00:02:20]} {[%emt 00:00:18]} 38. Bc3 {[%clk 00:08:48]} {[%emt 00:02:06]} Bxc3
{[%clk 00:02:04]} {[%emt 00:00:21]} 39. bxc3 {[%clk 00:08:52]} {[%emt
00:00:02]} Rd8 {[%clk 00:02:07]} {[%emt 00:00:01]} 40. Rc4 {[%clk 00:08:29]}
{[%emt 00:00:28]} Ra8 {[%clk 00:01:42]} {[%emt 00:00:30]} 41. a4 {[%clk
00:08:32]} {[%emt 00:00:02]} Ra5 {[%clk 00:01:43]} {[%emt 00:00:04]} 42. Kf3
{[%clk 00:08:34]} {[%emt 00:00:08]} Kf7 {[%clk 00:01:47]} 43. Ke4 {[%clk
00:08:32]} Kf6 {[%clk 00:01:41]} {[%emt 00:00:12]} 44. f4 {[%clk 00:08:34]}
{[%emt 00:00:03]} e5 {[%clk 00:01:04]} {[%emt 00:00:43]} 45. Kd5 {[%clk
00:08:28]} {[%emt 00:00:10]} exf4 {[%clk 00:00:51]} {[%emt 00:00:17]} 46. exf4
{[%clk 00:07:34]} {[%emt 00:01:00]} Kf5 {[%clk 00:00:49]} {[%emt 00:00:07]} 47.
Kc6 {[%clk 00:07:33]} {[%emt 00:00:06]} Kg4 {[%clk 00:00:47]} {[%emt 00:00:07]}
48. Kb6 {[%clk 00:07:31]} {[%emt 00:00:11]} Ra8 {[%clk 00:00:49]} 49. a5 {[%clk
00:07:30]} {[%emt 00:00:05]} Rf8 {[%clk 00:00:35]} {[%emt 00:00:19]} 50. Rxc5
{[%clk 00:07:25]} {[%emt 00:00:10]} Kxg3 {[%clk 00:00:20]} {[%emt 00:00:20]} 51.
a6 {[%clk 00:07:28]} {[%emt 00:00:02]} Rf6+ {[%clk 00:00:21]} {[%emt 00:00:05]}
52. Rc6 {[%clk 00:07:30]} {[%emt 00:00:02]} 1-0

[Event "New Zealand Rapid Championship"]
[Site "Wellington"]
[Date "2023.01.11"]
[Round "1.5"]
[White "Ker, Anthony F"]
[Black "Brockway, Andrew"]
[Result "1-0"]
[TimeControl "25+5"]
[WhiteTitle "IM"]
[WhiteFideId "4300084"]
[BlackFideId "4301340"]
[WhiteElo "2359"]
[BlackElo "1623"]

1. e4 {[%clk 00:25:06]} {[%emt 00:00:03]} c5 {[%clk 00:25:08]} {[%emt
00:00:03]} 2. Nc3 {[%clk 00:25:04]} {[%emt 00:00:08]} g6 {[%clk 00:25:08]}
{[%emt 00:00:04]} 3. d4 {[%clk 00:24:05]} {[%emt 00:01:05]} cxd4 {[%clk
00:25:06]} {[%emt 00:00:06]} 4. Qxd4 {[%clk 00:24:06]} {[%emt 00:00:04]} Nf6
{[%clk 00:25:04]} {[%emt 00:00:07]} 5. e5 {[%clk 00:22:50]} {[%emt 00:01:21]}
Nc6 {[%clk 00:24:58]} {[%emt 00:00:12]} 6. Qf4 {[%clk 00:22:49]} {[%emt
00:00:05]} Nh5 {[%clk 00:22:55]} {[%emt 00:02:13]} 7. Qe4 {[%clk 00:22:44]}
{[%emt 00:00:05]} d5 {[%clk 00:21:21]} {[%emt 00:01:40]} 8. Qxd5 {[%clk
00:21:54]} {[%emt 00:00:55]} Be6 {[%clk 00:18:16]} {[%emt 00:03:14]} 9. Qxd8+
{[%clk 00:18:38]} {[%emt 00:03:18]} Rxd8 {[%clk 00:18:17]} {[%emt 00:00:03]} 10.
Nf3 {[%clk 00:18:14]} {[%emt 00:00:29]} Nb4 {[%clk 00:16:24]} 11. Bb5+ {[%clk
00:18:14]} Bd7 {[%clk 00:16:24]} 12. Bf1 {[%clk 00:18:02]} Nxc2+ {[%clk
00:14:51]} {[%emt 00:06:15]} 1-0

[Event "New Zealand Rapid Championship"]
[Site "Wellington"]
[Date "2023.01.11"]
[Round "1.6"]
[White "Croad, Nicolas"]
[Black "List, Robert"]
[Result "1-0"]
[TimeControl "25+5"]
[WhiteTitle "FM"]
[WhiteFideId "4300793"]
[BlackFideId "4303490"]
[WhiteElo "2309"]
[BlackElo "1696"]

1. e4 {[%clk 00:25:08]} {[%emt 00:00:02]} b6 {[%clk 00:24:26]} {[%emt
00:00:45]} 2. d4 {[%clk 00:25:07]} {[%emt 00:00:06]} Bb7 {[%clk 00:24:17]}
{[%emt 00:00:14]} 3. Bd3 {[%clk 00:25:07]} {[%emt 00:00:05]} e6 {[%clk
00:23:55]} {[%emt 00:00:27]} 4. Nf3 {[%clk 00:25:06]} {[%emt 00:00:06]} Nf6
{[%clk 00:23:44]} {[%emt 00:00:15]} 5. Qe2 {[%clk 00:25:04]} {[%emt 00:00:06]}
h5 {[%clk 00:22:56]} {[%emt 00:00:54]} 6. O-O {[%clk 00:24:59]} {[%emt
00:00:11]} Ng4 {[%clk 00:22:40]} {[%emt 00:00:29]} 7. h3 {[%clk 00:24:43]}
{[%emt 00:00:13]} Nc6 {[%clk 00:22:15]} {[%emt 00:00:30]} 8. c3 {[%clk
00:24:31]} {[%emt 00:00:16]} Bd6 {[%clk 00:21:41]} {[%emt 00:00:39]} 9. e5
{[%clk 00:23:12]} {[%emt 00:01:24]} Bf8 {[%clk 00:21:32]} {[%emt 00:00:14]} 10.
hxg4 {[%clk 00:22:47]} {[%emt 00:00:30]} hxg4 {[%clk 00:21:06]} {[%emt
00:00:41]} 11. Ng5 {[%clk 00:22:47]} f6 {[%clk 00:20:25]} {[%emt 00:00:41]} 12.
Bg6+ {[%clk 00:22:42]} {[%emt 00:00:11]} 1-0